[Event "*** Titled Tuesday 3|2 Blitz"]
[Site "Chess.com"]
[Date "2016.10.04"]
[Round "3"]
[White "MFBerna"]
[Black "spirals5"]
[Result "0-1"]
[WhiteElo "2151"]
[BlackElo "2268"]
[TimeControl "180+2"]
[EndTime "17:34:52 PDT"]
[Termination "spirals5 won on time"]

1. e4 {[%clk 0:02:58.5]} 1... c5 {[%clk 0:03:00.5]} 2. Nf3 {[%clk 0:02:59.4]}
2... d6 {[%clk 0:03:01.1]} 3. d4 {[%clk 0:02:58.1]} 3... cxd4 {[%clk 0:03:01.5]}
4. Nxd4 {[%clk 0:03:00]} 4... Nf6 {[%clk 0:03:02.2]} 5. Nc3 {[%clk 0:03:01.3]}
5... a6 {[%clk 0:03:03.3]} 6. Be3 {[%clk 0:02:59]} 6... e5 {[%clk 0:03:03.7]} 7.
Nf3 {[%clk 0:02:59.7]} 7... h6 {[%clk 0:03:04.2]} 8. Bc4 {[%clk 0:03:00.4]} 8...
Be7 {[%clk 0:03:04.6]} 9. O-O {[%clk 0:03:00.9]} 9... O-O {[%clk 0:03:05]} 10.
a4 {[%clk 0:02:57.7]} 10... Nc6 {[%clk 0:03:02.9]} 11. Qd3 {[%clk 0:02:46.5]}
11... Bg4 {[%clk 0:03:01.4]} 12. Nd2 {[%clk 0:02:41.5]} 12... Nb4 {[%clk
0:02:59.8]} 13. Bxf7+ {[%clk 0:02:30.7]} 13... Rxf7 {[%clk 0:03:00.2]} 14. Qc4
{[%clk 0:02:31.7]} 14... Nxc2 {[%clk 0:03:00.7]} 15. Rac1 {[%clk 0:02:30.1]}
15... Nxe3 {[%clk 0:03:00.9]} 16. fxe3 {[%clk 0:02:30.2]} 16... Rc8 {[%clk
0:03:00.3]} 17. Qb3 {[%clk 0:02:28.3]} 17... Qd7 {[%clk 0:02:54.3]} 18. Nd5
{[%clk 0:01:56.1]} 18... Rxc1 {[%clk 0:02:53.4]} 19. Nxe7+ {[%clk 0:01:39.5]}
19... Qxe7 {[%clk 0:02:53.1]} 20. Rxc1 {[%clk 0:01:41.4]} 20... Be6 {[%clk
0:02:50.3]} 21. Qb6 {[%clk 0:01:38.4]} 21... Ng4 {[%clk 0:02:30.5]} 22. Nf3
{[%clk 0:01:27.8]} 22... Kh7 {[%clk 0:02:28.3]} 23. Rd1 {[%clk 0:01:20.9]} 23...
Nf6 {[%clk 0:02:19.2]} 24. Rxd6 {[%clk 0:01:17.6]} 24... Bg4 {[%clk 0:02:11.1]}
25. Nd2 {[%clk 0:00:56.6]} 25... Nd7 {[%clk 0:01:47]} 26. Qc7 {[%clk 0:00:42.6]}
26... Qg5 {[%clk 0:01:42.9]} 27. Nf1 {[%clk 0:00:21.5]} 27... Be2 {[%clk
0:01:37.9]} 28. Ng3 {[%clk 0:00:08.4]} 28... Qxe3+ {[%clk 0:01:36.7]} 29. Kh1
{[%clk 0:00:09.8]} 29... Bg4 {[%clk 0:01:22.5]} 30. Qc3 {[%clk 0:00:07.8]} 30...
Qxc3 {[%clk 0:01:20.9]} 31. bxc3 {[%clk 0:00:09.7]} 31... Nf6 {[%clk 0:01:17.4]}
32. h3 {[%clk 0:00:09.3]} 32... Bd7 {[%clk 0:01:17.3]} 33. a5 {[%clk 0:00:09]}
33... g6 {[%clk 0:01:13.2]} 34. Rb6 {[%clk 0:00:07]} 34... Bc6 {[%clk
0:01:13.2]} 35. Rb4 {[%clk 0:00:08.2]} 35... h5 {[%clk 0:01:10.1]} 36. h4 {[%clk
0:00:06.8]} 36... Kg7 {[%clk 0:01:07.2]} 37. Kg1 {[%clk 0:00:07.1]} 37... Ng4
{[%clk 0:01:07]} 38. Rb2 {[%clk 0:00:03.8]} 38... Rd7 {[%clk 0:01:06.5]} 39. Rb1
{[%clk 0:00:03.3]} 39... Rd2 {[%clk 0:00:58.6]} 0-1

[Event "*** Titled Tuesday 3|2 Blitz"]
[Site "Chess.com"]
[Date "2016.10.04"]
[Round "3"]
[White "AdrianaNikolova"]
[Black "cheese111"]
[Result "0-1"]
[WhiteElo "2249"]
[BlackElo "2292"]
[TimeControl "180+2"]
[EndTime "17:35:51 PDT"]
[Termination "cheese111 won by resignation"]

1. e4 {[%clk 0:03:01.9]} 1... d5 {[%clk 0:03:01]} 2. exd5 {[%clk 0:02:58.2]}
2... Nf6 {[%clk 0:03:02.4]} 3. Nc3 {[%clk 0:02:59.8]} 3... Nxd5 {[%clk
0:03:02.7]} 4. Nxd5 {[%clk 0:03:01.1]} 4... Qxd5 {[%clk 0:03:04.1]} 5. Nf3
{[%clk 0:03:03]} 5... Nc6 {[%clk 0:03:02.9]} 6. d4 {[%clk 0:03:02.8]} 6... Bg4
{[%clk 0:03:03.5]} 7. Be2 {[%clk 0:03:02.1]} 7... O-O-O {[%clk 0:03:03.1]} 8. c3
{[%clk 0:03:02.3]} 8... e5 {[%clk 0:02:51]} 9. Nxe5 {[%clk 0:02:49.4]} 9... Bxe2
{[%clk 0:02:49.6]} 10. Qxe2 {[%clk 0:02:51.3]} 10... Nxe5 {[%clk 0:02:27.1]} 11.
dxe5 {[%clk 0:02:41.2]} 11... Qxg2 {[%clk 0:02:26.1]} 12. Rf1 {[%clk 0:02:41.4]}
12... Qxh2 {[%clk 0:02:13.8]} 13. Bd2 {[%clk 0:02:33.5]} 13... Re8 {[%clk
0:02:00.8]} 14. f4 {[%clk 0:02:33.5]} 14... Qxe2+ {[%clk 0:02:00.4]} 15. Kxe2
{[%clk 0:02:35.4]} 15... f6 {[%clk 0:02:01.6]} 16. Rae1 {[%clk 0:02:16.9]} 16...
Bd6 {[%clk 0:01:56.5]} 17. Kd1 {[%clk 0:02:14.5]} 17... fxe5 {[%clk 0:01:57.1]}
18. fxe5 {[%clk 0:02:16.4]} 18... Bxe5 {[%clk 0:01:56.6]} 19. Rg1 {[%clk
0:02:08.3]} 19... Bf6 {[%clk 0:01:55.3]} 20. Ref1 {[%clk 0:02:07.5]} 20... Rd8
{[%clk 0:01:49.5]} 21. Kc2 {[%clk 0:02:07.3]} 21... Rhe8 {[%clk 0:01:50.1]} 22.
Rg2 {[%clk 0:02:06]} 22... Rd5 {[%clk 0:01:45.5]} 23. c4 {[%clk 0:01:59.8]}
23... Rh5 {[%clk 0:01:45.2]} 24. Bc3 {[%clk 0:01:56.5]} 24... Bxc3 {[%clk
0:01:14.9]} 25. Kxc3 {[%clk 0:01:58.4]} 25... Re7 {[%clk 0:01:09.1]} 26. Rf8+
{[%clk 0:01:57.2]} 26... Kd7 {[%clk 0:01:10.2]} 27. b4 {[%clk 0:01:42.7]} 27...
Rh3+ {[%clk 0:01:04.2]} 28. Kd4 {[%clk 0:01:35.8]} 28... b6 {[%clk 0:00:40]} 29.
b5 {[%clk 0:01:34.7]} 29... c5+ {[%clk 0:00:35.3]} 30. bxc6+ {[%clk 0:01:31.7]}
30... Kxc6 {[%clk 0:00:37.2]} 31. Rc8+ {[%clk 0:01:26.6]} 31... Kb7 {[%clk
0:00:37.4]} 32. Rg8 {[%clk 0:01:27.9]} 32... g6 {[%clk 0:00:37.8]} 33. Rf2
{[%clk 0:01:27.4]} 33... Rd7+ {[%clk 0:00:34.2]} 34. Ke5 {[%clk 0:01:24.6]}
34... Rc3 {[%clk 0:00:34.8]} 35. Rf4 {[%clk 0:00:57.8]} 35... Rc7 {[%clk
0:00:35.2]} 36. Kd5 {[%clk 0:00:57.7]} 36... Rc5+ {[%clk 0:00:34.7]} 37. Kd6
{[%clk 0:00:56.6]} 37... R3xc4 {[%clk 0:00:32.9]} 38. Rg7+ {[%clk 0:00:57.9]}
38... Rc7 {[%clk 0:00:29.9]} 39. Rff7 {[%clk 0:00:47.6]} 39... Rc6+ {[%clk
0:00:27.4]} 40. Kd5 {[%clk 0:00:47.8]} 40... Rxf7 {[%clk 0:00:28.9]} 41. Rxf7+
{[%clk 0:00:49.5]} 41... Rc7 {[%clk 0:00:29.9]} 42. Rf8 {[%clk 0:00:49.4]} 42...
Ka6 {[%clk 0:00:21.8]} 43. Kd6 {[%clk 0:00:46.7]} 43... Rc2 {[%clk 0:00:22.2]}
44. a4 {[%clk 0:00:45.7]} 44... h5 {[%clk 0:00:22]} 45. Rg8 {[%clk 0:00:45.7]}
45... Rg2 {[%clk 0:00:22.2]} 46. Rg7 {[%clk 0:00:46.7]} 46... h4 {[%clk
0:00:22.8]} 47. Rh7 {[%clk 0:00:47.4]} 47... g5 {[%clk 0:00:23.5]} 48. Ke5
{[%clk 0:00:49.3]} 48... Rg3 {[%clk 0:00:23.7]} 49. Kf5 {[%clk 0:00:49.8]} 49...
h3 {[%clk 0:00:25]} 50. Ke4 {[%clk 0:00:50.3]} 50... g4 {[%clk 0:00:25.9]} 51.
Kf4 {[%clk 0:00:50.2]} 51... Rg2 {[%clk 0:00:27.1]} 52. Rh4 {[%clk 0:00:52]}
52... h2 {[%clk 0:00:27.8]} 53. a5 {[%clk 0:00:52.3]} 53... g3 {[%clk
0:00:27.5]} 54. axb6 {[%clk 0:00:52]} 54... axb6 {[%clk 0:00:28.2]} 55. Rh8
{[%clk 0:00:50.7]} 55... Rg1 {[%clk 0:00:28.9]} 56. Ra8+ {[%clk 0:00:50.8]}
56... Kb7 {[%clk 0:00:30.1]} 57. Rh8 {[%clk 0:00:50.5]} 57... h1=Q {[%clk
0:00:30.8]} 58. Rxh1 {[%clk 0:00:51.5]} 58... Rxh1 {[%clk 0:00:32.7]} 59. Kxg3
{[%clk 0:00:53.4]} 59... Rf1 {[%clk 0:00:32]} 0-1

[Event "*** Titled Tuesday 3|2 Blitz"]
[Site "Chess.com"]
[Date "2016.10.04"]
[Round "3"]
[White "Joshukid"]
[Black "Fins0905"]
[Result "0-1"]
[WhiteElo "2340"]
[BlackElo "2486"]
[TimeControl "180+2"]
[EndTime "17:35:58 PDT"]
[Termination "Fins0905 won by resignation"]

1. d4 {[%clk 0:03:01.9]} 1... d5 {[%clk 0:02:59.3]} 2. c4 {[%clk 0:03:01.2]}
2... c6 {[%clk 0:03:00.4]} 3. Nc3 {[%clk 0:03:02.1]} 3... Nf6 {[%clk 0:02:59.5]}
4. e3 {[%clk 0:03:03.3]} 4... e6 {[%clk 0:03:00.4]} 5. Nf3 {[%clk 0:03:01.5]}
5... Nbd7 {[%clk 0:03:01.6]} 6. cxd5 {[%clk 0:03:00.1]} 6... exd5 {[%clk
0:02:59.8]} 7. Bd3 {[%clk 0:03:00.8]} 7... Bd6 {[%clk 0:02:55.7]} 8. O-O {[%clk
0:03:01.3]} 8... O-O {[%clk 0:02:56.5]} 9. b3 {[%clk 0:03:01.3]} 9... Re8 {[%clk
0:02:56.3]} 10. Bb2 {[%clk 0:03:02.1]} 10... Nf8 {[%clk 0:02:54.3]} 11. Qc2
{[%clk 0:02:58.7]} 11... Bg4 {[%clk 0:02:45]} 12. Be2 {[%clk 0:02:59.1]} 12...
Bh5 {[%clk 0:02:39.9]} 13. h3 {[%clk 0:02:57.6]} 13... Bg6 {[%clk 0:02:40]} 14.
Bd3 {[%clk 0:02:58]} 14... Bxd3 {[%clk 0:02:36.7]} 15. Qxd3 {[%clk 0:02:57.3]}
15... Ne4 {[%clk 0:02:37.5]} 16. Nd2 {[%clk 0:02:58.3]} 16... f5 {[%clk
0:02:30.6]} 17. Rae1 {[%clk 0:02:49.6]} 17... Qh4 {[%clk 0:02:24.6]} 18. f4
{[%clk 0:02:30.9]} 18... Nxd2 {[%clk 0:02:07.4]} 19. Qxd2 {[%clk 0:02:28.5]}
19... Nd7 {[%clk 0:02:01.3]} 20. Qd3 {[%clk 0:02:26.8]} 20... g6 {[%clk
0:01:57]} 21. Re2 {[%clk 0:02:21.5]} 21... Nf6 {[%clk 0:01:53]} 22. Rf3 {[%clk
0:02:12.7]} 22... Re6 {[%clk 0:01:46.1]} 23. Nd1 {[%clk 0:02:11.3]} 23... Rae8
{[%clk 0:01:44.3]} 24. Bc3 {[%clk 0:02:09.4]} 24... Nh5 {[%clk 0:01:36]} 25. Be1
{[%clk 0:02:08.3]} 25... Qe7 {[%clk 0:01:32.2]} 26. g3 {[%clk 0:02:06.8]} 26...
Nf6 {[%clk 0:01:26.2]} 27. Kh2 {[%clk 0:02:05.6]} 27... Ne4 {[%clk 0:01:22.8]}
28. Bf2 {[%clk 0:01:59.1]} 28... Bb4 {[%clk 0:01:11.7]} 29. Bg1 {[%clk
0:01:52.9]} 29... a5 {[%clk 0:01:06.8]} 30. Rg2 {[%clk 0:01:52.6]} 30... Bd6
{[%clk 0:00:59.2]} 31. Kh1 {[%clk 0:01:51.6]} 31... Bc7 {[%clk 0:00:42.6]} 32.
Bf2 {[%clk 0:01:51.4]} 32... Qb4 {[%clk 0:00:40]} 33. Bg1 {[%clk 0:01:43.4]}
33... a4 {[%clk 0:00:39.5]} 34. Kh2 {[%clk 0:01:39.5]} 34... axb3 {[%clk
0:00:38.7]} 35. axb3 {[%clk 0:01:40.2]} 35... Nd6 {[%clk 0:00:32.8]} 36. g4
{[%clk 0:01:35.7]} 36... Rf6 {[%clk 0:00:30.3]} 37. Rfg3 {[%clk 0:01:31.4]}
37... Ne4 {[%clk 0:00:30.4]} 38. Rf3 {[%clk 0:01:31.7]} 38... Ra8 {[%clk
0:00:27.9]} 39. gxf5 {[%clk 0:01:26.9]} 39... Rxf5 {[%clk 0:00:28.5]} 40. Nf2
{[%clk 0:01:28]} 40... Re8 {[%clk 0:00:26.2]} 41. Ng4 {[%clk 0:01:26.7]} 41...
Kf8 {[%clk 0:00:22.7]} 42. Bf2 {[%clk 0:01:22.2]} 42... Qc3 {[%clk 0:00:21.3]}
43. Qf1 {[%clk 0:01:20.9]} 43... Nd2 {[%clk 0:00:21.9]} 44. Qe2 {[%clk
0:01:15.3]} 44... Nxf3+ {[%clk 0:00:22.9]} 45. Qxf3 {[%clk 0:01:17.2]} 45...
Bxf4+ {[%clk 0:00:23]} 46. Bg3 {[%clk 0:01:10.1]} 46... Bxe3 {[%clk 0:00:21.3]}
47. Bd6+ {[%clk 0:01:07.1]} 47... Kg7 {[%clk 0:00:19.1]} 48. Qg3 {[%clk
0:00:49]} 48... Qxd4 {[%clk 0:00:18.5]} 49. Nxe3 {[%clk 0:00:27]} 49... Rxe3
{[%clk 0:00:18.4]} 50. Qh4 {[%clk 0:00:18.6]} 50... Qxh4 {[%clk 0:00:18.5]} 0-1

[Event "*** Titled Tuesday 3|2 Blitz"]
[Site "Chess.com"]
[Date "2016.10.04"]
[Round "3"]
[White "gmshanmeruga"]
[Black "KNVB"]
[Result "1-0"]
[WhiteElo "2282"]
[BlackElo "2479"]
[TimeControl "180+2"]
[EndTime "17:36:04 PDT"]
[Termination "gmshanmeruga won by resignation"]

1. e4 {[%clk 0:02:59.4]} 1... e6 {[%clk 0:03:01.4]} 2. d4 {[%clk 0:02:59.5]}
2... d5 {[%clk 0:03:03.1]} 3. Nc3 {[%clk 0:02:59.7]} 3... Bb4 {[%clk 0:03:03.7]}
4. e5 {[%clk 0:03:00.1]} 4... Ne7 {[%clk 0:03:04.2]} 5. a3 {[%clk 0:02:56.9]}
5... Bxc3+ {[%clk 0:03:05.6]} 6. bxc3 {[%clk 0:02:58.6]} 6... b6 {[%clk
0:03:07.5]} 7. Qg4 {[%clk 0:02:54.8]} 7... Ng6 {[%clk 0:03:08.7]} 8. h4 {[%clk
0:02:54]} 8... h5 {[%clk 0:03:10.4]} 9. Qg3 {[%clk 0:02:53.4]} 9... Ba6 {[%clk
0:03:12.3]} 10. Bxa6 {[%clk 0:02:52.1]} 10... Nxa6 {[%clk 0:03:14.2]} 11. Ne2
{[%clk 0:02:52.1]} 11... Qd7 {[%clk 0:03:06.2]} 12. Bg5 {[%clk 0:02:50.6]} 12...
Qa4 {[%clk 0:02:46.5]} 13. Qd3 {[%clk 0:02:45.3]} 13... Ne7 {[%clk 0:02:27.1]}
14. Ng3 {[%clk 0:02:41.4]} 14... g6 {[%clk 0:02:04.7]} 15. Qf3 {[%clk
0:02:28.2]} 15... Rg8 {[%clk 0:01:52.5]} 16. O-O {[%clk 0:02:19.1]} 16... Qxc2
{[%clk 0:01:27.8]} 17. c4 {[%clk 0:01:59.3]} 17... Rd8 {[%clk 0:00:44.4]} 18.
cxd5 {[%clk 0:01:51.5]} 18... Rxd5 {[%clk 0:00:45]} 19. Rac1 {[%clk 0:01:47.9]}
19... Qa4 {[%clk 0:00:44.2]} 20. Qf6 {[%clk 0:01:35.3]} 20... Qd7 {[%clk
0:00:39.6]} 21. Rfd1 {[%clk 0:01:27.1]} 21... Nb8 {[%clk 0:00:19.3]} 22. Ne4
{[%clk 0:01:22.2]} 22... Nf5 {[%clk 0:00:18.3]} 23. Bf4 {[%clk 0:01:18.4]} 23...
Qd8 {[%clk 0:00:11.3]} 24. Qxd8+ {[%clk 0:01:16.5]} 24... Kxd8 {[%clk 0:00:12]}
25. Nf6 {[%clk 0:01:17.6]} 25... Rh8 {[%clk 0:00:08.2]} 26. Nxd5 {[%clk
0:01:17.2]} 26... exd5 {[%clk 0:00:10.1]} 27. Bg5+ {[%clk 0:01:14.4]} 27... Kd7
{[%clk 0:00:11]} 28. f3 {[%clk 0:01:10.4]} 28... Nc6 {[%clk 0:00:12.1]} 29. Bf6
{[%clk 0:01:08.4]} 29... Rc8 {[%clk 0:00:08.7]} 30. Kf2 {[%clk 0:01:06.6]} 30...
Nfxd4 {[%clk 0:00:06.9]} 31. e6+ {[%clk 0:01:04.6]} 31... Kxe6 {[%clk
0:00:04.8]} 32. Bxd4 {[%clk 0:01:04.7]} 32... Ne7 {[%clk 0:00:05.5]} 33. Re1+
{[%clk 0:01:01.7]} 33... Kd7 {[%clk 0:00:06.8]} 34. Bf6 {[%clk 0:01:01.5]} 34...
Ng8 {[%clk 0:00:07.7]} 35. Bg5 {[%clk 0:00:59.3]} 35... f6 {[%clk 0:00:09.3]}
36. Bf4 {[%clk 0:01:00.1]} 36... c5 {[%clk 0:00:11]} 37. Rcd1 {[%clk 0:00:53.5]}
37... d4 {[%clk 0:00:12.4]} 38. Re4 {[%clk 0:00:51.7]} 38... Ne7 {[%clk
0:00:13.3]} 39. Rde1 {[%clk 0:00:50.4]} 39... Nd5 {[%clk 0:00:14.9]} 40. Bd2
{[%clk 0:00:49.2]} 40... Rc6 {[%clk 0:00:06.4]} 41. g4 {[%clk 0:00:46.3]} 41...
Rd6 {[%clk 0:00:06.1]} 42. gxh5 {[%clk 0:00:43]} 42... gxh5 {[%clk 0:00:08]} 43.
Rg1 {[%clk 0:00:44.1]} 43... Kc6 {[%clk 0:00:07.4]} 44. a4 {[%clk 0:00:41.4]}
44... a6 {[%clk 0:00:06.7]} 45. Rg8 {[%clk 0:00:39.2]} 45... b5 {[%clk
0:00:08.2]} 46. Rc8+ {[%clk 0:00:35.1]} 46... Kb7 {[%clk 0:00:04.3]} 47. Rxc5
{[%clk 0:00:34.4]} 47... Nb6 {[%clk 0:00:05]} 48. axb5 {[%clk 0:00:33.7]} 48...
axb5 {[%clk 0:00:04.9]} 49. Rxb5 {[%clk 0:00:33.9]} 49... Kc6 {[%clk 0:00:06.8]}
50. Rxh5 {[%clk 0:00:30.9]} 50... Nc4 {[%clk 0:00:08.1]} 51. Bb4 {[%clk
0:00:25.8]} 51... Rd8 {[%clk 0:00:08.8]} 52. Rc5+ {[%clk 0:00:26.3]} 1-0

[Event "*** Titled Tuesday 3|2 Blitz"]
[Site "Chess.com"]
[Date "2016.10.04"]
[Round "3"]
[White "FLchessplayer"]
[Black "3ptdka"]
[Result "0-1"]
[WhiteElo "2007"]
[BlackElo "2044"]
[TimeControl "180+2"]
[EndTime "17:36:19 PDT"]
[Termination "3ptdka won by resignation"]

1. e4 {[%clk 0:03:02]} 1... c5 {[%clk 0:03:00.2]} 2. Nf3 {[%clk 0:03:02.8]} 2...
d6 {[%clk 0:03:01]} 3. c3 {[%clk 0:02:56.2]} 3... Nf6 {[%clk 0:02:59.5]} 4. Bd3
{[%clk 0:02:56.4]} 4... Nbd7 {[%clk 0:02:56]} 5. O-O {[%clk 0:02:55.3]} 5... b5
{[%clk 0:02:56.8]} 6. Re1 {[%clk 0:02:55.1]} 6... Bb7 {[%clk 0:02:52.7]} 7. Bc2
{[%clk 0:02:52.1]} 7... e6 {[%clk 0:02:48.2]} 8. a4 {[%clk 0:02:51.8]} 8... a6
{[%clk 0:02:48.9]} 9. d4 {[%clk 0:02:52.4]} 9... cxd4 {[%clk 0:02:48.6]} 10.
cxd4 {[%clk 0:02:52.3]} 10... Be7 {[%clk 0:02:43.2]} 11. Nc3 {[%clk 0:02:52.4]}
11... b4 {[%clk 0:02:43]} 12. e5 {[%clk 0:02:52.6]} 12... bxc3 {[%clk
0:02:40.5]} 13. exf6 {[%clk 0:02:52.9]} 13... Nxf6 {[%clk 0:02:40.5]} 14. bxc3
{[%clk 0:02:52.3]} 14... Rc8 {[%clk 0:02:41.6]} 15. Bd2 {[%clk 0:02:50]} 15...
O-O {[%clk 0:02:33.5]} 16. Rb1 {[%clk 0:02:49.6]} 16... Bd5 {[%clk 0:02:31.1]}
17. Rb2 {[%clk 0:02:45.7]} 17... Bc4 {[%clk 0:02:27.2]} 18. Qb1 {[%clk
0:02:42.3]} 18... Qd7 {[%clk 0:02:22.7]} 19. Bg5 {[%clk 0:02:39.4]} 19... g6
{[%clk 0:02:21]} 20. h3 {[%clk 0:02:35.3]} 20... Rc7 {[%clk 0:02:16.4]} 21. Qc1
{[%clk 0:02:23]} 21... Nd5 {[%clk 0:02:14]} 22. Bxe7 {[%clk 0:02:21]} 22... Qxe7
{[%clk 0:02:12.6]} 23. Be4 {[%clk 0:02:13.5]} 23... Rfc8 {[%clk 0:02:07.8]} 24.
Bxd5 {[%clk 0:02:06.3]} 24... Bxd5 {[%clk 0:02:07.3]} 25. Re3 {[%clk 0:02:06.2]}
25... Bxf3 {[%clk 0:02:02.8]} 26. Rxf3 {[%clk 0:02:07]} 26... Rc4 {[%clk
0:02:03.7]} 27. Qb1 {[%clk 0:01:52.9]} 27... Rxa4 {[%clk 0:01:54.3]} 28. Rb7
{[%clk 0:01:52.7]} 28... Rc7 {[%clk 0:01:49.6]} 29. Rb8+ {[%clk 0:01:53.3]}
29... Kg7 {[%clk 0:01:48]} 30. Qb2 {[%clk 0:01:54.1]} 30... d5 {[%clk
0:01:40.4]} 31. Ra8 {[%clk 0:01:47.1]} 31... Ra7 {[%clk 0:01:24]} 32. Rb8 {[%clk
0:01:33.1]} 32... Rc4 {[%clk 0:01:10.6]} 33. Qb6 {[%clk 0:01:26.2]} 33... Qc7
{[%clk 0:01:01.4]} 34. Qb2 {[%clk 0:01:17.5]} 34... a5 {[%clk 0:00:59.2]} 35.
Rb5 {[%clk 0:00:58.2]} 35... a4 {[%clk 0:00:57.1]} 36. Qc1 {[%clk 0:00:59.1]}
36... Qe7 {[%clk 0:00:54.7]} 37. Qf4 {[%clk 0:00:58]} 37... a3 {[%clk
0:00:51.8]} 38. Rb1 {[%clk 0:00:47.6]} 38... a2 {[%clk 0:00:51.3]} 39. Ra1
{[%clk 0:00:48.3]} 39... Qc7 {[%clk 0:00:44.6]} 40. Qf6+ {[%clk 0:00:46.5]}
40... Kg8 {[%clk 0:00:42.3]} 41. h4 {[%clk 0:00:10.4]} 41... Rxc3 {[%clk
0:00:30.9]} 42. g3 {[%clk 0:00:11]} 42... Rc1+ {[%clk 0:00:26.8]} 43. Rxc1
{[%clk 0:00:10.3]} 43... Qxc1+ {[%clk 0:00:27.3]} 44. Kg2 {[%clk 0:00:12.2]}
44... Qc7 {[%clk 0:00:26.7]} 45. h5 {[%clk 0:00:11.1]} 45... Qe7 {[%clk
0:00:19.4]} 46. Qf4 {[%clk 0:00:10.2]} 46... a1=Q {[%clk 0:00:16.1]} 47. h6
{[%clk 0:00:11.2]} 47... Qf8 {[%clk 0:00:16.2]} 48. g4 {[%clk 0:00:08.3]} 48...
Ra4 {[%clk 0:00:15.7]} 49. g5 {[%clk 0:00:08.9]} 49... Qxd4 {[%clk 0:00:16.2]}
50. Qg3 {[%clk 0:00:06.2]} 50... Qg4 {[%clk 0:00:17.1]} 51. Qxg4 {[%clk
0:00:06.2]} 51... Rxg4+ {[%clk 0:00:17.5]} 0-1

[Event "*** Titled Tuesday 3|2 Blitz"]
[Site "Chess.com"]
[Date "2016.10.04"]
[Round "3"]
[White "hardingstoptry"]
[Black "GianmarcoVaR"]
[Result "1-0"]
[WhiteElo "2466"]
[BlackElo "2376"]
[TimeControl "180+2"]
[EndTime "17:36:25 PDT"]
[Termination "hardingstoptry won by resignation"]

1. Nf3 {[%clk 0:03:00.3]} 1... Nf6 {[%clk 0:02:56.9]} 2. g3 {[%clk 0:03:02.2]}
2... d5 {[%clk 0:02:58]} 3. Bg2 {[%clk 0:03:04.1]} 3... Bg4 {[%clk 0:02:59]} 4.
O-O {[%clk 0:03:01.6]} 4... e6 {[%clk 0:02:59.9]} 5. h3 {[%clk 0:03:02.2]} 5...
Bh5 {[%clk 0:03:00.6]} 6. d3 {[%clk 0:03:02]} 6... Nbd7 {[%clk 0:02:57.2]} 7.
Nbd2 {[%clk 0:03:02.9]} 7... Be7 {[%clk 0:02:57.1]} 8. b3 {[%clk 0:03:04.1]}
8... a5 {[%clk 0:02:53.7]} 9. c4 {[%clk 0:03:05.1]} 9... a4 {[%clk 0:02:51.4]}
10. Bb2 {[%clk 0:03:01.1]} 10... O-O {[%clk 0:02:46.9]} 11. Qc2 {[%clk
0:02:58.8]} 11... c6 {[%clk 0:02:46.2]} 12. g4 {[%clk 0:02:55.7]} 12... Bg6
{[%clk 0:02:46.8]} 13. Nh4 {[%clk 0:02:57.1]} 13... Qa5 {[%clk 0:02:35.7]} 14.
Bc3 {[%clk 0:02:52]} 14... Bb4 {[%clk 0:02:34]} 15. Bxb4 {[%clk 0:02:42.8]}
15... Qxb4 {[%clk 0:02:35.9]} 16. Nxg6 {[%clk 0:02:44.7]} 16... hxg6 {[%clk
0:02:35.5]} 17. Rab1 {[%clk 0:02:41.1]} 17... a3 {[%clk 0:02:30]} 18. e3 {[%clk
0:02:38.7]} 18... Rac8 {[%clk 0:01:54.2]} 19. Nf3 {[%clk 0:02:24.5]} 19... e5
{[%clk 0:01:47.5]} 20. Rfc1 {[%clk 0:02:23.1]} 20... Rfe8 {[%clk 0:01:37.3]} 21.
cxd5 {[%clk 0:02:02.6]} 21... Nxd5 {[%clk 0:01:36.7]} 22. Nd2 {[%clk 0:02:03.2]}
22... Kh7 {[%clk 0:01:19]} 23. Ne4 {[%clk 0:02:02.1]} 23... Qe7 {[%clk 0:01:15]}
24. Kh2 {[%clk 0:01:49]} 24... Red8 {[%clk 0:01:09.6]} 25. b4 {[%clk 0:01:46.4]}
25... Nxb4 {[%clk 0:01:07.3]} 26. Qb3 {[%clk 0:01:46.9]} 26... c5 {[%clk
0:01:03]} 27. Rd1 {[%clk 0:01:47.7]} 27... b6 {[%clk 0:00:29.7]} 28. Qxa3 {[%clk
0:01:45.2]} 28... Nf8 {[%clk 0:00:26.1]} 29. Qb3 {[%clk 0:01:42.3]} 29... Ne6
{[%clk 0:00:24.7]} 30. a3 {[%clk 0:01:43.2]} 30... Nd5 {[%clk 0:00:25.8]} 31.
Kg1 {[%clk 0:01:41.4]} 31... Rb8 {[%clk 0:00:21.7]} 32. Rdc1 {[%clk 0:01:38.6]}
32... Nf6 {[%clk 0:00:21.2]} 33. Nd2 {[%clk 0:01:39.6]} 33... Qd7 {[%clk
0:00:18.4]} 34. Nc4 {[%clk 0:01:38.3]} 34... Qc7 {[%clk 0:00:16.8]} 35. a4
{[%clk 0:01:37.5]} 35... Nd5 {[%clk 0:00:17.3]} 36. Bxd5 {[%clk 0:01:37.5]}
36... Rxd5 {[%clk 0:00:17.9]} 37. a5 {[%clk 0:01:37]} 37... b5 {[%clk
0:00:15.2]} 38. Nb6 {[%clk 0:01:30.6]} 38... Rdd8 {[%clk 0:00:11.3]} 39. Qxb5
{[%clk 0:01:31.6]} 39... e4 {[%clk 0:00:09.6]} 40. d4 {[%clk 0:01:29.1]} 40...
Qe7 {[%clk 0:00:08.7]} 41. dxc5 {[%clk 0:01:24.5]} 41... Qh4 {[%clk 0:00:09.8]}
42. Qf1 {[%clk 0:01:21.3]} 42... Ng5 {[%clk 0:00:11]} 43. Rc2 {[%clk 0:00:59.3]}
43... Nxh3+ {[%clk 0:00:11.7]} 44. Kg2 {[%clk 0:00:59.2]} 44... Qxg4+ {[%clk
0:00:12.8]} 45. Kh1 {[%clk 0:00:57.1]} 45... Qh5 {[%clk 0:00:09.8]} 46. Kg2
{[%clk 0:00:52.7]} 46... Qf3+ {[%clk 0:00:08.9]} 47. Kh2 {[%clk 0:00:50.5]}
47... Ng5 {[%clk 0:00:08.7]} 48. Qg2 {[%clk 0:00:49.4]} 48... Qh5+ {[%clk
0:00:09.6]} 49. Kg3 {[%clk 0:00:47.7]} 49... Kg8 {[%clk 0:00:03.4]} 50. Rh1
{[%clk 0:00:41.5]} 50... Qf3+ {[%clk 0:00:04.6]} 51. Qxf3 {[%clk 0:00:39.1]}
51... Nxf3 {[%clk 0:00:06.3]} 52. c6 {[%clk 0:00:37.7]} 52... Rdc8 {[%clk
0:00:03.5]} 53. c7 {[%clk 0:00:36.9]} 53... Ra8 {[%clk 0:00:03.4]} 54. Nxa8
{[%clk 0:00:36.2]} 1-0